Workbook

Sheet Services-Produits
A1: Produit | B1: Price
A2: Abbott Freestyle 2 | B2: 91.4
A3: Abbott Sensor | B3: 65.3
A4: Antioxidant Mix | B4: 410
A5: Artesunat | B5: 67.2
A6: Bactoflor | B6: 69.8
A7: Biotin | B7: 37.25
A8: Biotin + NaCl | B8: 37.25
A9: B-Kompleks | B9: 46.8
A10: Black cumin capsules | B10: 34.8
A11: Bosvene Akba | B11: 215.11
A12: Brain Mapping | B12: 2148
A13: Calcium gluconat | B13: 22.6
A14: Cholin Inject | B14: 43
A15: C-Intercell 650 mg Vitamin C, 90 Kapseln | B15: 27.99
A16: Consultation | B16: 1800
A17: Creon 25000 | B17: 111.75
A18: Curcumin + NaCl 0,9% | B18: 116.22
A19: Curcumin 150 mg | B19: 229.2
A20: Curcumin 75 mg | B20: 116.22
A21: Darmflorin | B21: 25.45
A22: Deposit for medical treatment | B22: 32215 | C22: 70000
A23: Diabetische Polyneuropathie | B23: 347.65
A24: Dr. Roland Backhaus
A25: EEG & EKG | B25: 1860
A26: E-Inject | B26: 41.2
A27: Epinativ Injection | B27: 133.61
A28: Epinative | B28: 275.4
A29: Face treatment Chin contouring | B29: 600
A30: Faktu | B30: 8.7
A31: Famotidin | B31: 57.2
A32: Fermanose | B32: 46.2
A33: Fiber-Intercell | B33: 40.49
A34: Flatulex | B34: 8.85
A35: Full check up & screening | B35: 1870
A36: Full check up & screening, vascular, heart, thyroid & abdomen | B36: 2380
A37: Full check up & screening, vascular, heart, thyroid, brain mapping & Abdomen | B37: 2148
A38: Full check ups | B38: 1870
A39: Full check ups & screenings | B39: 1870
A40: Gedächtnis Infusion | B40: 378
A41: Gut Microbiome - 1 transplants | B41: 7199.75
A42: Gut Microbiome 2 transplants | B42: 14399.5
A43: Gut Microbiome 3 transplants | B43: 21599.25
A44: Gut Microbiome 4 transplants | B44: 28799
A45: Gut Microbiome Therapy | B45: 6912.5
A46: Gynophilus | B46: 19.8
A47: Gynopholus | B47: 19.7
A48: Gynophylus | B48: 19.8
A49: Hepar | B49: 43.7
A50: Hydroxiprolin 2 g | B50: 68.9
A51: Hypericin 5 mg | B51: 218.8 | C51: 198.7
A52: Iberogast | B52: 22.2
A53: Immunocare | B53: 220
A54: Immunocare, personalised | B54: 195.7
A55: Infraorbital | B55: 600
A56: Infusion: Curcumin 75 mg | B56: 116.22
A57: Infusion: Nicotiamide | B57: 179.8
A58: Infusions
A59: Jantung (Herz) | B59: 584.5
A60: K2 & D3 | B60: 34.7
A61: Kantong kemih (Harnblase) | B61: 381.35
A62: Kiki Redjeki Treatment by Dr. Markus Pütz | B62: 505.7
A63: Laetia | B63: 45.3
A64: Liserotota | B64: 345.3
A65: Liv 52 | B65: 14.9
A66: Magentropfen | B66: 23
A67: Magnesium | B67: 39.1 | C67: 25.45
A68: Magnesium 1000 mg | B68: 34.68
A69: Magnesium Intercell | B69: 15.1
A70: Memoserin 90 Kapseln | B70: 67.7
A71: Microbiome | B71: 74.95
A72: Microbiome body lotion | B72: 29.9
A73: Microbiome therapy 2 transplants | B73: 7199.75
A74: Microcare 4 months | B74: 571.05
A75: Microcare immuno strong | B75: 280
A76: Microcare personalised | B76: 799.4
A77: Microniome face serum | B77: 69.9
A78: Mitochondrien | B78: 428.7
A79: Mitochondrien Infusion | B79: 428.7
A80: Mitochondrien Mix | B80: 2017.3
A81: Muskulatur (Otot) | B81: 286.4
A82: NAD+ | B82: 219.66
A83: Neuro Amino | B83: 87.5 | C83: 163.2
A84: Neuropathy | B84: 347.65
A85: Nicotiamide | B85: 47
A86: Nicotinamide | B86: 47 | C86: 179.8
A87: NMN, Rapamune, Sildenafil & Tadalafil | B87: 67.8
A88: Oliphenolia | B88: 183.51
A89: Oliphenolia + NaCl 0,9% 150 ml | B89: 183.51
A90: Omega 3 | B90: 51.9
A91: Omega 7 | B91: 82.6
A92: Omega 7.0 | B92: 81.35
A93: Oregano oil | B93: 21.4
A94: Otak kecil (Kleinhirn) | B94: 288
A95: Ozempic | B95: 120.5 | C95: 129.8
A96: Pantoprazol | B96: 17.5
A97: Phenylalanine | B97: 106.4
A98: Phospolipide | B98: 31.28
A99: Plavix | B99: 93.7
A100: Polineurophathy | B100: 347.65
A101: Prodigest | B101: 72.35
A102: Q10 i.v. sensitive | B102: 178.8
A103: Reservatrol + NaCl 0,9% 300 ml | B103: 178
A104: Resveratrol | B104: 178
A105: Riboflavin | B105: 127.4
A106: Riopan | B106: 32.4
A107: RNA | B107: 516.7
A108: RNA Auge | B108: 384.45
A109: RNA Heart | B109: 584.5 | C109: 516.7
A110: RNA Hepar | B110: 374.8
A111: RNA Injections 4 vials | B111: 516.7
A112: RNA Lunge | B112: 381.2
A113: RNA Retina | B113: 417
A114: RNA Thymus | B114: 185.7 | C114: 516.7
A115: Salvans | B115: 13.05
A116: Screenings Vascular, heart, thyroid & Abdomen | B116: 2870
A117: Selenium | B117: 20.28 | C117: 41.6
A118: Senolytics mixture | B118: 670
A119: Senolytics Mixture | B119: 670
A120: Shipping | B120: 41.35
A121: Shoga Öl | B121: 670
A122: Spermidin | B122: 182.35
A123: Tadalafil-Mepha 10 mg | B123: 115
A124: Tadalafil-Mepha 2.5 mg | B124: 115
A125: Tadalafil-Mepha 5 mg | B125: 115
A126: Tamsulosin Retard | B126: 59.58
A127: Taurin 2g | B127: 21.7
A128: Testicle | B128: 372.45
A129: Thymus | B129: 516.7
A130: USG: Vascular, Thyroid & Abdomen | B130: 1480
A131: Vascular, Heart, Thyroid & Abdomen | B131: 2380
A132: Ventrisana | B132: 19.2
A133: Vistabel 3 zones | B133: 750
A134: Vit B12 | B134: 10
A135: Vit C | B135: 42.7 | C135: 27.99 | D135: 49.67
A136: Vit C Streuli | B136: 30.4
A137: Vit D3 | B137: 37
A138: Vit D3 | B138: 29.8
A139: Vit D3 Streuli | B139: 26.3
A140: Vit E Inject I.M.
A141: Vit, B Komplex | B141: 46.8
A142: Vit. C, Zn | B142: 21.4
A143: Vit. E IM
A144: Vitamin B12 Amino | B144: 15
A145: Vitamin C Streuli | B145: 21.6
A146: Vitamin D3 Intercell | B146: 19.8
A147: Vit-C Intercell | B147: 26.99 | C147: 27.99
A148: Wegovy 0.25 mg | B148: 188.15
A149: Wegovy 0.5mg | B149: 188.15
A150: Xanax | B150: 42.7
A151: Xanax 1 mg | B151: 25.15
A152: Xanax 2 mg | B152: 42.75
A153: Zentra inject | B153: 60
A154: Zn Intercell | B154: 20.74
A155: Cerebrolysin 10 ml | B155: 99.6
A156: Cerebrolysin 5 ml | B156: 63.8
A157: Selenase | B157: 175
A158: Discount 15%
A159: DCA
A160: Vitarubine
A161: Phago SES
A162: Phago PYO
A163: Protokol Lösung 1 Infusion
A164: Respiphage

Sheet Reference
A3: Invoice: 55H-02406-GM11
A4: 23.09.2024
C5: Treatment by
C6: Dr. Roland Backhaus
A14: Description | B14: Qty | C14: Price | D14: Amount
C17: =IFERROR(VLOOKUP(A17,'Services-Produits'!$A$1:$B$2000,2,FALSE),"") ->  | D17: =IFERROR(B17*C17,"") -> 
C18: =IFERROR(VLOOKUP(A18,'Services-Produits'!$A$1:$B$2000,2,FALSE),"") ->  | D18: =IFERROR(B18*C18,"") -> 
C19: =IFERROR(VLOOKUP(A19,'Services-Produits'!$A$1:$B$2000,2,FALSE),"") -> 
C20: =IFERROR(VLOOKUP(A20,'Services-Produits'!$A$1:$B$2000,2,FALSE),"") -> 
C21: =IFERROR(VLOOKUP(A21,'Services-Produits'!$A$1:$B$2000,2,FALSE),"") -> 
C22: =IFERROR(VLOOKUP(A22,'Services-Produits'!$A$1:$B$2000,2,FALSE),"") -> 
C23: =IFERROR(VLOOKUP(A23,'Services-Produits'!$A$1:$B$2000,2,FALSE),"") -> 
C24: =IFERROR(VLOOKUP(A24,'Services-Produits'!$A$1:$B$2000,2,FALSE),"") -> 
C25: =IFERROR(VLOOKUP(A25,'Services-Produits'!$A$1:$B$2000,2,FALSE),"") -> 
C26: =IFERROR(VLOOKUP(A26,'Services-Produits'!$A$1:$B$2000,2,FALSE),"") -> 
C27: =IFERROR(VLOOKUP(A27,'Services-Produits'!$A$1:$B$2000,2,FALSE),"") -> 
C28: =IFERROR(VLOOKUP(A28,'Services-Produits'!$A$1:$B$2000,2,FALSE),"") -> 
C29: =IFERROR(VLOOKUP(A29,'Services-Produits'!$A$1:$B$2000,2,FALSE),"") -> 
C30: =IFERROR(VLOOKUP(A30,'Services-Produits'!$A$1:$B$2000,2,FALSE),"") -> 
C31: =IFERROR(VLOOKUP(A31,'Services-Produits'!$A$1:$B$2000,2,FALSE),"") -> 
C32: =IFERROR(VLOOKUP(A32,'Services-Produits'!$A$1:$B$2000,2,FALSE),"") -> 
C33: =IFERROR(VLOOKUP(A33,'Services-Produits'!$A$1:$B$2000,2,FALSE),"") -> 
C34: =IFERROR(VLOOKUP(A34,'Services-Produits'!$A$1:$B$2000,2,FALSE),"") -> 
C35: =IFERROR(VLOOKUP(A35,'Services-Produits'!$A$1:$B$2000,2,FALSE),"") -> 
C36: =IFERROR(VLOOKUP(A36,'Services-Produits'!$A$1:$B$2000,2,FALSE),"") -> 
C37: =IFERROR(VLOOKUP(A37,'Services-Produits'!$A$1:$B$2000,2,FALSE),"") -> 
A38: Total in CHF | D38: =SUM(D17:D37) -> 0
A40: Thank you very much for your trust!

Sheet Patients
A1: Adex Yudiswan | D1: Jakarta | E1: Indonesia | F1: M | G1: 1974-12-03 | H1: SM
A2: Agus Andriyanto | D2: Jakarta | E2: Indonesia | F2: M | G2: 1967-02-16 | H2: SM
A3: Andrea Wulandari Iravan | D3: Jakarta | E3: Indonesia | F3: F | G3: 1995-08-07 | H3: N | L3: Discount5 | M3: -0.05
A4: Armand Wahyudi Hartono | D4: Jakarta | E4: Indonesia | F4: M | G4: 1975-05-20 | H4: SM | L4: Discount10 | M4: -0.1
A5: Budi Satrio | D5: Jakarta | E5: Indonesia | F5: M | G5: 1976-05-31 | H5: SBL | L5: Discount15 | M5: -0.15
A6: Chan Choi Moi | D6: Jakarta | E6: Indonesia | F6: F | G6: 1972-04-28 | H6: SM | L6: Discount20 | M6: -0.2
A7: Darmo Pranoto Soenjoto | D7: Jakarta | E7: Indonesia | F7: M | G7: 1946-06-20 | H7: N | L7: Discount25 | M7: -0.25
A8: Deddy Prasetyo | D8: Jakarta | E8: Indonesia | F8: M | G8: 1968-07-26 | H8: SM | L8: Discount30 | M8: -0.3
A9: Dian Siswarini | D9: Jakarta | E9: Indonesia | F9: F | G9: 1968-05-05 | H9: SM | L9: Discount35 | M9: -0.35
A10: Dian Suri Iriani | D10: Jakarta | E10: Indonesia | F10: F | G10: 1979-08-02 | H10: SBL | L10: Discount40 | M10: -0.4
A11: Dobias Iskandar | D11: Jakarta | E11: Indonesia | F11: M | G11: 1965-11-16 | H11: SM | L11: Discount45 | M11: -0.45
A12: Doni Irawan Soenarso | D12: Jakarta | E12: Indonesia | F12: M | G12: 1957-07-11 | H12: SM | L12: Discount50 | M12: -0.5
A13: Dr. Putri Kusuma | D13: Jakarta | E13: Indonesia | F13: F | G13: 1969-01-07 | H13: SM | L13: Discount55 | M13: -0.55
A14: Eileen Patricia Hartono | D14: Jakarta | E14: Indonesia | F14: F | G14: 1973-05-01 | H14: SBL | L14: Discount60 | M14: -0.6
A15: Erminda Melayeni | D15: Jakarta | E15: Indonesia | F15: F | G15: 1975-10-25 | H15: SM | L15: Discount65 | M15: -0.65
A16: Escy Soeleiman | D16: Jakarta | E16: Indonesia | F16: F | G16: 1965-12-09 | H16: SBL | L16: Discount70 | M16: -0.7
A17: Evy Celiyanti | D17: Jakarta | E17: Indonesia | F17: F | G17: 1972-03-07 | H17: SM | L17: Discount75 | M17: -0.75
A18: Fajar Hadi Prabowo | D18: Jakarta | E18: Indonesia | F18: M | G18: 1989-11-14 | H18: N | L18: Discount80 | M18: -0.8
A19: Herman Herry Adranacus | D19: Jakarta | E19: Indonesia | F19: M | G19: 1962-11-26 | H19: SM | L19: Discount85 | M19: -0.85
A20: Isandi Harahap | D20: Jakarta | E20: Indonesia | F20: M | G20: 1958-12-10 | H20: SBL | L20: Discount90 | M20: -0.9
A21: Ita Yuliati | D21: Jakarta | E21: Indonesia | F21: F | G21: 1969-01-07 | H21: SM | L21: Discount95 | M21: -0.95
A22: Karyoto | D22: Jakarta | E22: Indonesia | F22: M | G22: 1968-10-27 | H22: SBL
A23: Laksmita Artha Widja | D23: Jakarta | E23: Indonesia | F23: F | G23: 1990-03-03 | H23: SM
A24: Lina Iskandar | D24: Jakarta | E24: Indonesia | F24: F | G24: 1970-06-25 | H24: SBL
A25: Maike Yolanda Fiancisca | D25: Jakarta | E25: Indonesia | F25: F | G25: 1959-02-09 | H25: SM
A26: Martha Dwi Maryani | D26: Jakarta | E26: Indonesia | F26: F | G26: 1969-05-21 | H26: SM
A27: Mochamad Iriawan | D27: Jakarta | E27: Indonesia | F27: M | H27: SM
A28: Muhamad Mardiono | D28: Jakarta | E28: Indonesia | F28: M | G28: 1957-07-11 | H28: SM
A29: Muhamad Mardiono | D29: Jakarta | E29: Indonesia | F29: M | G29: 1957-07-11 | H29: SM
A30: Muljadi Tjahjono | D30: Jakarta | E30: Indonesia | F30: M | G30: 1965-07-22 | H30: SM
A31: Murat Ismael | D31: Jakarta | E31: Indonesia | F31: M | G31: 1961-09-11 | H31: N
A32: Nonda Nellyana Djaja | D32: Jakarta | E32: Indonesia | F32: F | G32: 1948-01-12 | H32: SM
A33: Novita Ariya | D33: Jakarta | E33: Indonesia | F33: F | H33: SM
A34: Nyoman Adhi Suryadnyana | D34: Jakarta | E34: Indonesia | F34: M | G34: 1974-10-15 | H34: SBL
A35: Ong Hang Ling | D35: Jakarta | E35: Indonesia | F35: M | G35: 1938-12-12 | H35: N
A36: Peter Pramana | D36: Jakarta | E36: Indonesia | F36: M | G36: 1974-08-10 | H36: N
A37: Prodjo Handajo Sunjoto | D37: Jakarta | E37: Indonesia | F37: M | G37: 1941-08-17 | H37: SM
A38: Putri Kusuma Mardiono | D38: Jakarta | E38: Indonesia | F38: F | H38: N
A39: Romyus Permana | D39: Jakarta | E39: Indonesia | F39: M | G39: 1978-10-20 | H39: SBL
A40: Salim Lan Jaya Liem | D40: Jakarta | E40: Indonesia | F40: M | G40: 1971-06-01 | H40: SM | I40: 2024-06-26
A41: Sambodo Purnomo | D41: Jakarta | E41: Indonesia | F41: M | G41: 1973-07-03 | H41: SM
A42: Samuel Bob | D42: Jakarta | E42: Indonesia | F42: M | G42: 1974-01-04 | H42: SM
A43: Samuel Rusli | D43: Jakarta | E43: Indonesia | F43: M | G43: 1968-04-01 | H43: SM
A44: Shanti Tan | D44: Jakarta | E44: Indonesia | F44: F | G44: 1978-09-10 | H44: SBL
A45: Shu Shu | D45: Jakarta | E45: Indonesia | F45: F | H45: SBL
A46: Sri Wahyuswinta | D46: Jakarta | E46: Indonesia | F46: F | G46: 1969-04-04 | H46: SM
A47: Suryadi Jakin | D47: Jakarta | E47: Indonesia | F47: M | G47: 1947-04-04 | H47: SM
A48: Tan Kim Siong | D48: Jakarta | E48: Indonesia | F48: M | G48: 1970-11-09 | H48: SM
A49: Tan Siew Chang | D49: Jakarta | E49: Indonesia | F49: F | G49: 1967-01-13 | H49: SM
A50: Titi Salim | D50: Jakarta | E50: Indonesia | F50: M | G50: 1971-06-01 | H50: SBL
A51: Tommy Yakin | D51: Jakarta | E51: Indonesia | F51: M | G51: 1988-12-07 | H51: SM
A52: Wahyu Hadiningrat | D52: Jakarta | E52: Indonesia | F52: M | G52: 1974-05-06 | H52: N
A53: Wahyu Widada | D53: Jakarta | E53: Indonesia | F53: M | G53: 1969-09-11 | H53: SM
A54: Wisnu Hermawan | D54: Jakarta | E54: Indonesia | F54: M | G54: 1972-02-16 | H54: SM
A55: Yenni Rista | D55: Jakarta | E55: Indonesia | F55: F | G55: 1958-07-18 | H55: SM
A56: Yenny Wijaya | D56: Jakarta | E56: Indonesia | F56: F | G56: 1973-03-16 | H56: SM
A57: Yuldi Yusman | D57: Jakarta | E57: Indonesia | F57: M | G57: 1975-07-29 | H57: SM
A58: Yulia Gunawan | D58: Jakarta | E58: Indonesia | F58: F | G58: 1983-01-06 | H58: SM
A59: Listiana Handajani | D59: Jakarta | E59: Indonesia | F59: F | G59: 1954-04-26 | H59: N
A60: Almahyra Cyrilla Sastroisvara | D60: Jakarta | E60: Indonesia | F60: F

Sheet Wisnu Hermawan
A3: Invoice: 55H-02406-GM11
A4: 23.09.2024
C5: Treatment by
C6: Dr. Roland Backhaus
A9: Mr. Wisnu Hermawan
A10: Jakarta
A11: Indonesia
A14: Description | B14: Qty | C14: Price | D14: Amount
A15: Patient: Wisnu Hermawan, M, 16.02.1972
C17: =IFERROR(VLOOKUP(A17,'Services-Produits'!$A$1:$B$2000,2,FALSE),"") ->  | D17: =IFERROR(B17*C17,"") -> 
C18: =IFERROR(VLOOKUP(A18,'Services-Produits'!$A$1:$B$2000,2,FALSE),"") ->  | D18: =IFERROR(B18*C18,"") -> 
C19: =IFERROR(VLOOKUP(A19,'Services-Produits'!$A$1:$B$2000,2,FALSE),"") -> 
C20: =IFERROR(VLOOKUP(A20,'Services-Produits'!$A$1:$B$2000,2,FALSE),"") -> 
C21: =IFERROR(VLOOKUP(A21,'Services-Produits'!$A$1:$B$2000,2,FALSE),"") -> 
C22: =IFERROR(VLOOKUP(A22,'Services-Produits'!$A$1:$B$2000,2,FALSE),"") -> 
C23: =IFERROR(VLOOKUP(A23,'Services-Produits'!$A$1:$B$2000,2,FALSE),"") -> 
C24: =IFERROR(VLOOKUP(A24,'Services-Produits'!$A$1:$B$2000,2,FALSE),"") -> 
C25: =IFERROR(VLOOKUP(A25,'Services-Produits'!$A$1:$B$2000,2,FALSE),"") -> 
C26: =IFERROR(VLOOKUP(A26,'Services-Produits'!$A$1:$B$2000,2,FALSE),"") -> 
C27: =IFERROR(VLOOKUP(A27,'Services-Produits'!$A$1:$B$2000,2,FALSE),"") -> 
C28: =IFERROR(VLOOKUP(A28,'Services-Produits'!$A$1:$B$2000,2,FALSE),"") -> 
C29: =IFERROR(VLOOKUP(A29,'Services-Produits'!$A$1:$B$2000,2,FALSE),"") -> 
C30: =IFERROR(VLOOKUP(A30,'Services-Produits'!$A$1:$B$2000,2,FALSE),"") -> 
C31: =IFERROR(VLOOKUP(A31,'Services-Produits'!$A$1:$B$2000,2,FALSE),"") -> 
C32: =IFERROR(VLOOKUP(A32,'Services-Produits'!$A$1:$B$2000,2,FALSE),"") -> 
C33: =IFERROR(VLOOKUP(A33,'Services-Produits'!$A$1:$B$2000,2,FALSE),"") -> 
C34: =IFERROR(VLOOKUP(A34,'Services-Produits'!$A$1:$B$2000,2,FALSE),"") -> 
C35: =IFERROR(VLOOKUP(A35,'Services-Produits'!$A$1:$B$2000,2,FALSE),"") -> 
C36: =IFERROR(VLOOKUP(A36,'Services-Produits'!$A$1:$B$2000,2,FALSE),"") -> 
C37: =IFERROR(VLOOKUP(A37,'Services-Produits'!$A$1:$B$2000,2,FALSE),"") -> 
A38: Total in CHF | D38: =SUM(D17:D37) -> 0
A40: Thank you very much for your trust!

Sheet Wahyu Hadiningrat
A3: Invoice: 55H-02406-GM11
A4: 23.09.2024
C5: Treatment by
C6: Dr. Roland Backhaus
A9: Mr. Wahyu Hadiningrat
A10: Jakarta
A11: Indonesia
A14: Description | B14: Qty | C14: Price | D14: Amount
A15: Patient: Wahyu Hadiningrat, M, 06.05.1974
C17: =IFERROR(VLOOKUP(A17,'Services-Produits'!$A$1:$B$2000,2,FALSE),"") ->  | D17: =IFERROR(B17*C17,"") -> 
C18: =IFERROR(VLOOKUP(A18,'Services-Produits'!$A$1:$B$2000,2,FALSE),"") ->  | D18: =IFERROR(B18*C18,"") -> 
C19: =IFERROR(VLOOKUP(A19,'Services-Produits'!$A$1:$B$2000,2,FALSE),"") -> 
C20: =IFERROR(VLOOKUP(A20,'Services-Produits'!$A$1:$B$2000,2,FALSE),"") -> 
C21: =IFERROR(VLOOKUP(A21,'Services-Produits'!$A$1:$B$2000,2,FALSE),"") -> 
C22: =IFERROR(VLOOKUP(A22,'Services-Produits'!$A$1:$B$2000,2,FALSE),"") -> 
C23: =IFERROR(VLOOKUP(A23,'Services-Produits'!$A$1:$B$2000,2,FALSE),"") -> 
C24: =IFERROR(VLOOKUP(A24,'Services-Produits'!$A$1:$B$2000,2,FALSE),"") -> 
C25: =IFERROR(VLOOKUP(A25,'Services-Produits'!$A$1:$B$2000,2,FALSE),"") -> 
C26: =IFERROR(VLOOKUP(A26,'Services-Produits'!$A$1:$B$2000,2,FALSE),"") -> 
C27: =IFERROR(VLOOKUP(A27,'Services-Produits'!$A$1:$B$2000,2,FALSE),"") -> 
C28: =IFERROR(VLOOKUP(A28,'Services-Produits'!$A$1:$B$2000,2,FALSE),"") -> 
C29: =IFERROR(VLOOKUP(A29,'Services-Produits'!$A$1:$B$2000,2,FALSE),"") -> 
C30: =IFERROR(VLOOKUP(A30,'Services-Produits'!$A$1:$B$2000,2,FALSE),"") -> 
C31: =IFERROR(VLOOKUP(A31,'Services-Produits'!$A$1:$B$2000,2,FALSE),"") -> 
C32: =IFERROR(VLOOKUP(A32,'Services-Produits'!$A$1:$B$2000,2,FALSE),"") -> 
C33: =IFERROR(VLOOKUP(A33,'Services-Produits'!$A$1:$B$2000,2,FALSE),"") -> 
C34: =IFERROR(VLOOKUP(A34,'Services-Produits'!$A$1:$B$2000,2,FALSE),"") -> 
C35: =IFERROR(VLOOKUP(A35,'Services-Produits'!$A$1:$B$2000,2,FALSE),"") -> 
C36: =IFERROR(VLOOKUP(A36,'Services-Produits'!$A$1:$B$2000,2,FALSE),"") -> 
C37: =IFERROR(VLOOKUP(A37,'Services-Produits'!$A$1:$B$2000,2,FALSE),"") -> 
A38: Total in CHF | D38: =SUM(D17:D37) -> 0
A40: Thank you very much for your trust!

Sheet Agus Andriyanto
A3: Invoice: 55H-02406-GM11
A4: 23.09.2024
C5: Treatment by
C6: Dr. Roland Backhaus
A9: Mr. Agus Andriyanto
A10: Jakarta
A11: Indonesia
A14: Description | B14: Qty | C14: Price | D14: Amount
A15: Patient: Agus Andriyanto, M, 16.02.1967
A17: Gut Microbiome - 1 transplants | B17: 1 | C17: =IFERROR(VLOOKUP(A17,'Services-Produits'!$A$1:$B$2000,2,FALSE),"") -> 7199.75 | D17: =IFERROR(B17*C17,"") -> 7199.75
A18: Tadalafil-Mepha 2.5 mg | B18: 8 | C18: =IFERROR(VLOOKUP(A18,'Services-Produits'!$A$1:$B$2000,2,FALSE),"") -> 115 | D18: =IFERROR(B18*C18,"") -> 920
A19: Respiphage | B19: 1 | C19: =IFERROR(VLOOKUP(A19,'Services-Produits'!$A$1:$B$2000,2,FALSE),"") -> 0 | D19: =IFERROR(B19*C19,"") -> 0
A20: Curcumin 150 mg | B20: 3 | C20: =IFERROR(VLOOKUP(A20,'Services-Produits'!$A$1:$B$2000,2,FALSE),"") -> 229.2 | D20: 687.6
A21: Bosvene Akba | B21: 6 | C21: =IFERROR(VLOOKUP(A21,'Services-Produits'!$A$1:$B$2000,2,FALSE),"") -> 215.11 | D21: 1290.66
C22: =IFERROR(VLOOKUP(A22,'Services-Produits'!$A$1:$B$2000,2,FALSE),"") -> 
C23: =IFERROR(VLOOKUP(A23,'Services-Produits'!$A$1:$B$2000,2,FALSE),"") -> 
C24: =IFERROR(VLOOKUP(A24,'Services-Produits'!$A$1:$B$2000,2,FALSE),"") -> 
C25: =IFERROR(VLOOKUP(A25,'Services-Produits'!$A$1:$B$2000,2,FALSE),"") -> 
C26: =IFERROR(VLOOKUP(A26,'Services-Produits'!$A$1:$B$2000,2,FALSE),"") -> 
C27: =IFERROR(VLOOKUP(A27,'Services-Produits'!$A$1:$B$2000,2,FALSE),"") -> 
C28: =IFERROR(VLOOKUP(A28,'Services-Produits'!$A$1:$B$2000,2,FALSE),"") -> 
C29: =IFERROR(VLOOKUP(A29,'Services-Produits'!$A$1:$B$2000,2,FALSE),"") -> 
C30: =IFERROR(VLOOKUP(A30,'Services-Produits'!$A$1:$B$2000,2,FALSE),"") -> 
C31: =IFERROR(VLOOKUP(A31,'Services-Produits'!$A$1:$B$2000,2,FALSE),"") -> 
C32: =IFERROR(VLOOKUP(A32,'Services-Produits'!$A$1:$B$2000,2,FALSE),"") -> 
C33: =IFERROR(VLOOKUP(A33,'Services-Produits'!$A$1:$B$2000,2,FALSE),"") -> 
C34: =IFERROR(VLOOKUP(A34,'Services-Produits'!$A$1:$B$2000,2,FALSE),"") -> 
C35: =IFERROR(VLOOKUP(A35,'Services-Produits'!$A$1:$B$2000,2,FALSE),"") -> 
C36: =IFERROR(VLOOKUP(A36,'Services-Produits'!$A$1:$B$2000,2,FALSE),"") -> 
C37: =IFERROR(VLOOKUP(A37,'Services-Produits'!$A$1:$B$2000,2,FALSE),"") -> 
A38: Total in CHF | D38: =SUM(D17:D37) -> 10098.01
A40: Thank you very much for your trust!

Sheet Putri Kusuma Mardiono
A3: Invoice: 55H-02406-GM11
A4: 23.09.2024
C5: Treatment by
C6: Dr. Roland Backhaus
A9: Mrs. Putri Kusuma Mardiono
A10: Jakarta
A11: Indonesia
A14: Description | B14: Qty | C14: Price | D14: Amount
A15: Patient: Putri Kusuma Mardiono, F,
A17: Gut Microbiome 2 transplants | B17: 1 | C17: =IFERROR(VLOOKUP(A17,'Services-Produits'!$A$1:$B$2000,2,FALSE),"") -> 14399.5 | D17: =IFERROR(B17*C17,"") -> 14399.5
A18: Discount 15% | D18: =-D17*0.15 -> -2159.925
A19: Oliphenolia | B19: 6 | C19: =IFERROR(VLOOKUP(A19,'Services-Produits'!$A$1:$B$2000,2,FALSE),"") -> 183.51 | D19: =IFERROR(B19*C19,"") -> 1101.06
A20: Wegovy 0.5mg | B20: 3 | C20: =IFERROR(VLOOKUP(A20,'Services-Produits'!$A$1:$B$2000,2,FALSE),"") -> 188.15 | D20: 564.45
A21: Curcumin 150 mg | B21: 5 | C21: =IFERROR(VLOOKUP(A21,'Services-Produits'!$A$1:$B$2000,2,FALSE),"") -> 229.2 | D21: 1146
C22: =IFERROR(VLOOKUP(A22,'Services-Produits'!$A$1:$B$2000,2,FALSE),"") -> 
C23: =IFERROR(VLOOKUP(A23,'Services-Produits'!$A$1:$B$2000,2,FALSE),"") -> 
C24: =IFERROR(VLOOKUP(A24,'Services-Produits'!$A$1:$B$2000,2,FALSE),"") -> 
C25: =IFERROR(VLOOKUP(A25,'Services-Produits'!$A$1:$B$2000,2,FALSE),"") -> 
C26: =IFERROR(VLOOKUP(A26,'Services-Produits'!$A$1:$B$2000,2,FALSE),"") -> 
C27: =IFERROR(VLOOKUP(A27,'Services-Produits'!$A$1:$B$2000,2,FALSE),"") -> 
C28: =IFERROR(VLOOKUP(A28,'Services-Produits'!$A$1:$B$2000,2,FALSE),"") -> 
C29: =IFERROR(VLOOKUP(A29,'Services-Produits'!$A$1:$B$2000,2,FALSE),"") -> 
C30: =IFERROR(VLOOKUP(A30,'Services-Produits'!$A$1:$B$2000,2,FALSE),"") -> 
C31: =IFERROR(VLOOKUP(A31,'Services-Produits'!$A$1:$B$2000,2,FALSE),"") -> 
C32: =IFERROR(VLOOKUP(A32,'Services-Produits'!$A$1:$B$2000,2,FALSE),"") -> 
C33: =IFERROR(VLOOKUP(A33,'Services-Produits'!$A$1:$B$2000,2,FALSE),"") -> 
C34: =IFERROR(VLOOKUP(A34,'Services-Produits'!$A$1:$B$2000,2,FALSE),"") -> 
C35: =IFERROR(VLOOKUP(A35,'Services-Produits'!$A$1:$B$2000,2,FALSE),"") -> 
C36: =IFERROR(VLOOKUP(A36,'Services-Produits'!$A$1:$B$2000,2,FALSE),"") -> 
C37: =IFERROR(VLOOKUP(A37,'Services-Produits'!$A$1:$B$2000,2,FALSE),"") -> 
A38: Total in CHF | D38: =SUM(D17:D37) -> 15051.085
A40: Thank you very much for your trust!

Sheet Muhamad Mardiono
A3: Invoice: 55H-02406-GM11
A4: 23.09.2024
C5: Treatment by
C6: Dr. Roland Backhaus
A9: Mr. Muhamad Mardiono
A10: Jakarta
A11: Indonesia
A14: Description | B14: Qty | C14: Price | D14: Amount
A15: Patient: Muhamad Mardiono, M, 11.07.1957
A17: Gut Microbiome 4 transplants | B17: 1 | C17: =IFERROR(VLOOKUP(A17,'Services-Produits'!$A$1:$B$2000,2,FALSE),"") -> 28799 | D17: =IFERROR(B17*C17,"") -> 28799
A18: Discount 15% | D18: =D17*Discount15 -> -4319.85
A19: Protokol Lösung 1 Infusion | B19: 1 | C19: =IFERROR(VLOOKUP(A19,'Services-Produits'!$A$1:$B$2000,2,FALSE),"") -> 0 | D19: =IFERROR(B19*C19,"") -> 0
A20: Tadalafil-Mepha 2.5 mg | B20: 6 | C20: =IFERROR(VLOOKUP(A20,'Services-Produits'!$A$1:$B$2000,2,FALSE),"") -> 115 | D20: 690
A21: Hypericin 5 mg | B21: 3 | C21: =IFERROR(VLOOKUP(A21,'Services-Produits'!$A$1:$B$2000,2,FALSE),"") -> 218.8 | D21: 656.4
C22: =IFERROR(VLOOKUP(A22,'Services-Produits'!$A$1:$B$2000,2,FALSE),"") -> 
C23: =IFERROR(VLOOKUP(A23,'Services-Produits'!$A$1:$B$2000,2,FALSE),"") -> 
C24: =IFERROR(VLOOKUP(A24,'Services-Produits'!$A$1:$B$2000,2,FALSE),"") -> 
C25: =IFERROR(VLOOKUP(A25,'Services-Produits'!$A$1:$B$2000,2,FALSE),"") -> 
C26: =IFERROR(VLOOKUP(A26,'Services-Produits'!$A$1:$B$2000,2,FALSE),"") -> 
C27: =IFERROR(VLOOKUP(A27,'Services-Produits'!$A$1:$B$2000,2,FALSE),"") -> 
C28: =IFERROR(VLOOKUP(A28,'Services-Produits'!$A$1:$B$2000,2,FALSE),"") -> 
C29: =IFERROR(VLOOKUP(A29,'Services-Produits'!$A$1:$B$2000,2,FALSE),"") -> 
C30: =IFERROR(VLOOKUP(A30,'Services-Produits'!$A$1:$B$2000,2,FALSE),"") -> 
C31: =IFERROR(VLOOKUP(A31,'Services-Produits'!$A$1:$B$2000,2,FALSE),"") -> 
C32: =IFERROR(VLOOKUP(A32,'Services-Produits'!$A$1:$B$2000,2,FALSE),"") -> 
C33: =IFERROR(VLOOKUP(A33,'Services-Produits'!$A$1:$B$2000,2,FALSE),"") -> 
C34: =IFERROR(VLOOKUP(A34,'Services-Produits'!$A$1:$B$2000,2,FALSE),"") -> 
C35: =IFERROR(VLOOKUP(A35,'Services-Produits'!$A$1:$B$2000,2,FALSE),"") -> 
C36: =IFERROR(VLOOKUP(A36,'Services-Produits'!$A$1:$B$2000,2,FALSE),"") -> 
C37: =IFERROR(VLOOKUP(A37,'Services-Produits'!$A$1:$B$2000,2,FALSE),"") -> 
A38: Total in CHF | D38: =SUM(D17:D37) -> 25825.55
A40: Thank you very much for your trust!

Sheet Fajar Hadi Prabowo
A3: Invoice: 55H-02406-GM11
A4: 23.09.2024
C5: Treatment by
C6: Dr. Roland Backhaus
A9: Mr. Fajar Hadi Prabowo
A10: Jakarta
A11: Indonesia
A14: Description | B14: Qty | C14: Price | D14: Amount
A15: Patient: Fajar Hadi Prabowo, M, 14.11.1989
C17: =IFERROR(VLOOKUP(A17,'Services-Produits'!$A$1:$B$2000,2,FALSE),"") ->  | D17: =IFERROR(B17*C17,"") -> 
A18: Gut Microbiome 4 transplants | B18: 1 | C18: =IFERROR(VLOOKUP(A18,'Services-Produits'!$A$1:$B$2000,2,FALSE),"") -> 28799 | D18: =IFERROR(B18*C18,"") -> 28799
A19: Phenylalanine | B19: 1 | C19: =IFERROR(VLOOKUP(A19,'Services-Produits'!$A$1:$B$2000,2,FALSE),"") -> 106.4 | D19: 106.4
A20: Consultation | B20: 1 | C20: =IFERROR(VLOOKUP(A20,'Services-Produits'!$A$1:$B$2000,2,FALSE),"") -> 1800 | D20: 1800
C21: =IFERROR(VLOOKUP(A21,'Services-Produits'!$A$1:$B$2000,2,FALSE),"") -> 
C22: =IFERROR(VLOOKUP(A22,'Services-Produits'!$A$1:$B$2000,2,FALSE),"") -> 
C23: =IFERROR(VLOOKUP(A23,'Services-Produits'!$A$1:$B$2000,2,FALSE),"") -> 
C24: =IFERROR(VLOOKUP(A24,'Services-Produits'!$A$1:$B$2000,2,FALSE),"") -> 
C25: =IFERROR(VLOOKUP(A25,'Services-Produits'!$A$1:$B$2000,2,FALSE),"") -> 
C26: =IFERROR(VLOOKUP(A26,'Services-Produits'!$A$1:$B$2000,2,FALSE),"") -> 
C27: =IFERROR(VLOOKUP(A27,'Services-Produits'!$A$1:$B$2000,2,FALSE),"") -> 
C28: =IFERROR(VLOOKUP(A28,'Services-Produits'!$A$1:$B$2000,2,FALSE),"") -> 
C29: =IFERROR(VLOOKUP(A29,'Services-Produits'!$A$1:$B$2000,2,FALSE),"") -> 
C30: =IFERROR(VLOOKUP(A30,'Services-Produits'!$A$1:$B$2000,2,FALSE),"") -> 
C31: =IFERROR(VLOOKUP(A31,'Services-Produits'!$A$1:$B$2000,2,FALSE),"") -> 
C32: =IFERROR(VLOOKUP(A32,'Services-Produits'!$A$1:$B$2000,2,FALSE),"") -> 
C33: =IFERROR(VLOOKUP(A33,'Services-Produits'!$A$1:$B$2000,2,FALSE),"") -> 
C34: =IFERROR(VLOOKUP(A34,'Services-Produits'!$A$1:$B$2000,2,FALSE),"") -> 
C35: =IFERROR(VLOOKUP(A35,'Services-Produits'!$A$1:$B$2000,2,FALSE),"") -> 
C36: =IFERROR(VLOOKUP(A36,'Services-Produits'!$A$1:$B$2000,2,FALSE),"") -> 
C37: =IFERROR(VLOOKUP(A37,'Services-Produits'!$A$1:$B$2000,2,FALSE),"") -> 
A38: Total in CHF | D38: =SUM(D17:D37) -> 30705.4
A40: Thank you very much for your trust!

Sheet Murat Ismael
A3: Invoice: 55H-02406-GM11
A4: 23.09.2024
C5: Treatment by
C6: Dr. Roland Backhaus
A9: Mr. Murat Ismael
A10: Jakarta
A11: Indonesia
A14: Description | B14: Qty | C14: Price | D14: Amount
A15: Patient: Murat Ismael, M, 11.09.1961
A17: Gut Microbiome 4 transplants | B17: 1 | C17: =IFERROR(VLOOKUP(A17,'Services-Produits'!$A$1:$B$2000,2,FALSE),"") -> 28799 | D17: =IFERROR(B17*C17,"") -> 28799
A18: Antioxidant Mix | B18: 1 | C18: =IFERROR(VLOOKUP(A18,'Services-Produits'!$A$1:$B$2000,2,FALSE),"") -> 410 | D18: =IFERROR(B18*C18,"") -> 410
C19: =IFERROR(VLOOKUP(A19,'Services-Produits'!$A$1:$B$2000,2,FALSE),"") -> 
C20: =IFERROR(VLOOKUP(A20,'Services-Produits'!$A$1:$B$2000,2,FALSE),"") -> 
C21: =IFERROR(VLOOKUP(A21,'Services-Produits'!$A$1:$B$2000,2,FALSE),"") -> 
C22: =IFERROR(VLOOKUP(A22,'Services-Produits'!$A$1:$B$2000,2,FALSE),"") -> 
C23: =IFERROR(VLOOKUP(A23,'Services-Produits'!$A$1:$B$2000,2,FALSE),"") -> 
C24: =IFERROR(VLOOKUP(A24,'Services-Produits'!$A$1:$B$2000,2,FALSE),"") -> 
C25: =IFERROR(VLOOKUP(A25,'Services-Produits'!$A$1:$B$2000,2,FALSE),"") -> 
C26: =IFERROR(VLOOKUP(A26,'Services-Produits'!$A$1:$B$2000,2,FALSE),"") -> 
C27: =IFERROR(VLOOKUP(A27,'Services-Produits'!$A$1:$B$2000,2,FALSE),"") -> 
C28: =IFERROR(VLOOKUP(A28,'Services-Produits'!$A$1:$B$2000,2,FALSE),"") -> 
C29: =IFERROR(VLOOKUP(A29,'Services-Produits'!$A$1:$B$2000,2,FALSE),"") -> 
C30: =IFERROR(VLOOKUP(A30,'Services-Produits'!$A$1:$B$2000,2,FALSE),"") -> 
C31: =IFERROR(VLOOKUP(A31,'Services-Produits'!$A$1:$B$2000,2,FALSE),"") -> 
C32: =IFERROR(VLOOKUP(A32,'Services-Produits'!$A$1:$B$2000,2,FALSE),"") -> 
C33: =IFERROR(VLOOKUP(A33,'Services-Produits'!$A$1:$B$2000,2,FALSE),"") -> 
C34: =IFERROR(VLOOKUP(A34,'Services-Produits'!$A$1:$B$2000,2,FALSE),"") -> 
C35: =IFERROR(VLOOKUP(A35,'Services-Produits'!$A$1:$B$2000,2,FALSE),"") -> 
C36: =IFERROR(VLOOKUP(A36,'Services-Produits'!$A$1:$B$2000,2,FALSE),"") -> 
C37: =IFERROR(VLOOKUP(A37,'Services-Produits'!$A$1:$B$2000,2,FALSE),"") -> 
A38: Total in CHF | D38: =SUM(D17:D37) -> 29209
A40: Thank you very much for your trust!

Sheet Ong Hang Ling
A3: Invoice: 55H-02406-GM11
A4: 23.09.2024
C5: Treatment by
C6: Dr. Roland Backhaus
A9: Mr. Ong Hang Ling
A10: Jakarta
A11: Indonesia
A14: Description | B14: Qty | C14: Price | D14: Amount
A15: Patient: Ong Hang Ling, M, 12.12.1938
A17: Gut Microbiome 4 transplants | B17: 1 | C17: =IFERROR(VLOOKUP(A17,'Services-Produits'!$A$1:$B$2000,2,FALSE),"") -> 28799 | D17: =IFERROR(B17*C17,"") -> 28799
A18: Phago SES | B18: 2 | C18: =IFERROR(VLOOKUP(A18,'Services-Produits'!$A$1:$B$2000,2,FALSE),"") -> 0 | D18: =IFERROR(B18*C18,"") -> 0
A19: Phago PYO | B19: 1 | C19: =IFERROR(VLOOKUP(A19,'Services-Produits'!$A$1:$B$2000,2,FALSE),"") -> 0 | D19: 0
A20: Cerebrolysin 5 ml | B20: 1 | C20: =IFERROR(VLOOKUP(A20,'Services-Produits'!$A$1:$B$2000,2,FALSE),"") -> 63.8 | D20: 63.8
A21: Cerebrolysin 10 ml | B21: 4 | C21: =IFERROR(VLOOKUP(A21,'Services-Produits'!$A$1:$B$2000,2,FALSE),"") -> 99.6 | D21: 398.4
A22: Phenylalanine | B22: 5 | C22: =IFERROR(VLOOKUP(A22,'Services-Produits'!$A$1:$B$2000,2,FALSE),"") -> 106.4 | D22: 532
A23: Gedächtnis Infusion | B23: 5 | C23: =IFERROR(VLOOKUP(A23,'Services-Produits'!$A$1:$B$2000,2,FALSE),"") -> 378 | D23: 1890
A24: Mitochondrien Infusion | B24: 2 | C24: =IFERROR(VLOOKUP(A24,'Services-Produits'!$A$1:$B$2000,2,FALSE),"") -> 428.7 | D24: 857.4
A25: Resveratrol | B25: 5 | C25: =IFERROR(VLOOKUP(A25,'Services-Produits'!$A$1:$B$2000,2,FALSE),"") -> 178 | D25: 890
A26: Hypericin 5 mg | B26: 2 | C26: =IFERROR(VLOOKUP(A26,'Services-Produits'!$A$1:$B$2000,2,FALSE),"") -> 218.8 | D26: 437.6
A27: Nicotiamide | B27: 5 | C27: =IFERROR(VLOOKUP(A27,'Services-Produits'!$A$1:$B$2000,2,FALSE),"") -> 47 | D27: 235
A28: Shoga Öl | B28: 2 | C28: =IFERROR(VLOOKUP(A28,'Services-Produits'!$A$1:$B$2000,2,FALSE),"") -> 670 | D28: 1340
A29: Curcumin 150 mg | B29: 4 | C29: =IFERROR(VLOOKUP(A29,'Services-Produits'!$A$1:$B$2000,2,FALSE),"") -> 229.2 | D29: 916.8
A30: Vit D3 | B30: 1 | C30: =IFERROR(VLOOKUP(A30,'Services-Produits'!$A$1:$B$2000,2,FALSE),"") -> 37 | D30: 37
C31: =IFERROR(VLOOKUP(A31,'Services-Produits'!$A$1:$B$2000,2,FALSE),"") -> 
C32: =IFERROR(VLOOKUP(A32,'Services-Produits'!$A$1:$B$2000,2,FALSE),"") -> 
C33: =IFERROR(VLOOKUP(A33,'Services-Produits'!$A$1:$B$2000,2,FALSE),"") -> 
C34: =IFERROR(VLOOKUP(A34,'Services-Produits'!$A$1:$B$2000,2,FALSE),"") -> 
C35: =IFERROR(VLOOKUP(A35,'Services-Produits'!$A$1:$B$2000,2,FALSE),"") -> 
C36: =IFERROR(VLOOKUP(A36,'Services-Produits'!$A$1:$B$2000,2,FALSE),"") -> 
C37: =IFERROR(VLOOKUP(A37,'Services-Produits'!$A$1:$B$2000,2,FALSE),"") -> 
A38: Total in CHF | D38: =SUM(D17:D37) -> 36397
A40: Thank you very much for your trust!

Sheet Peter Pramana
A3: Invoice: 55H-02406-GM11
A4: 23.09.2024
C5: Treatment by
C6: Dr. Roland Backhaus
A9: Mr. Peter Pramana
A10: Jakarta
A11: Indonesia
A14: Description | B14: Qty | C14: Price | D14: Amount
A15: Patient: Peter Pramana, M, 10.08.1974
A17: Gut Microbiome 4 transplants | B17: 1 | C17: =IFERROR(VLOOKUP(A17,'Services-Produits'!$A$1:$B$2000,2,FALSE),"") -> 28799 | D17: =IFERROR(B17*C17,"") -> 28799
A18: NAD+ | B18: 4 | C18: =IFERROR(VLOOKUP(A18,'Services-Produits'!$A$1:$B$2000,2,FALSE),"") -> 219.66 | D18: =IFERROR(B18*C18,"") -> 878.64
C19: =IFERROR(VLOOKUP(A19,'Services-Produits'!$A$1:$B$2000,2,FALSE),"") -> 
C20: =IFERROR(VLOOKUP(A20,'Services-Produits'!$A$1:$B$2000,2,FALSE),"") -> 
C21: =IFERROR(VLOOKUP(A21,'Services-Produits'!$A$1:$B$2000,2,FALSE),"") -> 
C22: =IFERROR(VLOOKUP(A22,'Services-Produits'!$A$1:$B$2000,2,FALSE),"") -> 
C23: =IFERROR(VLOOKUP(A23,'Services-Produits'!$A$1:$B$2000,2,FALSE),"") -> 
C24: =IFERROR(VLOOKUP(A24,'Services-Produits'!$A$1:$B$2000,2,FALSE),"") -> 
C25: =IFERROR(VLOOKUP(A25,'Services-Produits'!$A$1:$B$2000,2,FALSE),"") -> 
C26: =IFERROR(VLOOKUP(A26,'Services-Produits'!$A$1:$B$2000,2,FALSE),"") -> 
C27: =IFERROR(VLOOKUP(A27,'Services-Produits'!$A$1:$B$2000,2,FALSE),"") -> 
C28: =IFERROR(VLOOKUP(A28,'Services-Produits'!$A$1:$B$2000,2,FALSE),"") -> 
C29: =IFERROR(VLOOKUP(A29,'Services-Produits'!$A$1:$B$2000,2,FALSE),"") -> 
C30: =IFERROR(VLOOKUP(A30,'Services-Produits'!$A$1:$B$2000,2,FALSE),"") -> 
C31: =IFERROR(VLOOKUP(A31,'Services-Produits'!$A$1:$B$2000,2,FALSE),"") -> 
C32: =IFERROR(VLOOKUP(A32,'Services-Produits'!$A$1:$B$2000,2,FALSE),"") -> 
C33: =IFERROR(VLOOKUP(A33,'Services-Produits'!$A$1:$B$2000,2,FALSE),"") -> 
C34: =IFERROR(VLOOKUP(A34,'Services-Produits'!$A$1:$B$2000,2,FALSE),"") -> 
C35: =IFERROR(VLOOKUP(A35,'Services-Produits'!$A$1:$B$2000,2,FALSE),"") -> 
C36: =IFERROR(VLOOKUP(A36,'Services-Produits'!$A$1:$B$2000,2,FALSE),"") -> 
C37: =IFERROR(VLOOKUP(A37,'Services-Produits'!$A$1:$B$2000,2,FALSE),"") -> 
A38: Total in CHF | D38: =SUM(D17:D37) -> 29677.64
A40: Thank you very much for your trust!

Sheet Andrea Wulandari Iravan
A3: Invoice: 55H-02406-GM11
A4: 23.09.2024
C5: Treatment by
C6: Dr. Roland Backhaus
A9: Mrs. Andrea Wulandari Iravan
A10: Jakarta
A11: Indonesia
A14: Description | B14: Qty | C14: Price | D14: Amount
A15: Patient: Andrea Wulandari Iravan, F, 07.08.1995
A17: Gut Microbiome 4 transplants | B17: 1 | C17: =IFERROR(VLOOKUP(A17,'Services-Produits'!$A$1:$B$2000,2,FALSE),"") -> 28799 | D17: =IFERROR(B17*C17,"") -> 28799
A18: Phenylalanine | B18: 2 | C18: =IFERROR(VLOOKUP(A18,'Services-Produits'!$A$1:$B$2000,2,FALSE),"") -> 106.4 | D18: =IFERROR(B18*C18,"") -> 212.8
A19: Mitochondrien Infusion | B19: 1 | C19: =IFERROR(VLOOKUP(A19,'Services-Produits'!$A$1:$B$2000,2,FALSE),"") -> 428.7 | D19: 428.7
A20: Hydroxiprolin 2 g | B20: 4 | C20: =IFERROR(VLOOKUP(A20,'Services-Produits'!$A$1:$B$2000,2,FALSE),"") -> 68.9 | D20: 275.6
A21: Selenase | B21: 1 | C21: =IFERROR(VLOOKUP(A21,'Services-Produits'!$A$1:$B$2000,2,FALSE),"") -> 175 | D21: 175
A22: Hypericin 5 mg | B22: 1 | C22: =IFERROR(VLOOKUP(A22,'Services-Produits'!$A$1:$B$2000,2,FALSE),"") -> 218.8 | D22: 218.8
A23: Tadalafil-Mepha 2.5 mg | B23: 4 | C23: =IFERROR(VLOOKUP(A23,'Services-Produits'!$A$1:$B$2000,2,FALSE),"") -> 115 | D23: 460
A24: Vitarubine | B24: 1 | C24: =IFERROR(VLOOKUP(A24,'Services-Produits'!$A$1:$B$2000,2,FALSE),"") -> 0 | D24: 0
C25: =IFERROR(VLOOKUP(A25,'Services-Produits'!$A$1:$B$2000,2,FALSE),"") -> 
C26: =IFERROR(VLOOKUP(A26,'Services-Produits'!$A$1:$B$2000,2,FALSE),"") -> 
C27: =IFERROR(VLOOKUP(A27,'Services-Produits'!$A$1:$B$2000,2,FALSE),"") -> 
C28: =IFERROR(VLOOKUP(A28,'Services-Produits'!$A$1:$B$2000,2,FALSE),"") -> 
C29: =IFERROR(VLOOKUP(A29,'Services-Produits'!$A$1:$B$2000,2,FALSE),"") -> 
C30: =IFERROR(VLOOKUP(A30,'Services-Produits'!$A$1:$B$2000,2,FALSE),"") -> 
C31: =IFERROR(VLOOKUP(A31,'Services-Produits'!$A$1:$B$2000,2,FALSE),"") -> 
C32: =IFERROR(VLOOKUP(A32,'Services-Produits'!$A$1:$B$2000,2,FALSE),"") -> 
C33: =IFERROR(VLOOKUP(A33,'Services-Produits'!$A$1:$B$2000,2,FALSE),"") -> 
C34: =IFERROR(VLOOKUP(A34,'Services-Produits'!$A$1:$B$2000,2,FALSE),"") -> 
C35: =IFERROR(VLOOKUP(A35,'Services-Produits'!$A$1:$B$2000,2,FALSE),"") -> 
C36: =IFERROR(VLOOKUP(A36,'Services-Produits'!$A$1:$B$2000,2,FALSE),"") -> 
C37: =IFERROR(VLOOKUP(A37,'Services-Produits'!$A$1:$B$2000,2,FALSE),"") -> 
A38: Total in CHF | D38: =SUM(D17:D37) -> 30569.9
A40: Thank you very much for your trust!

Sheet Darmo Pranoto Soenjoto
A3: Invoice: 55H-02406-GM11
A4: 23.09.2024
C5: Treatment by
C6: Dr. Roland Backhaus
A9: Mr. Darmo Pranoto Soenjoto
A10: Jakarta
A11: Indonesia
A14: Description | B14: Qty | C14: Price | D14: Amount
A15: Patient: Darmo Pranoto Soenjoto, M, 20.06.1946
A17: Gut Microbiome 4 transplants | B17: 1 | C17: =IFERROR(VLOOKUP(A17,'Services-Produits'!$A$1:$B$2000,2,FALSE),"") -> 28799 | D17: =IFERROR(B17*C17,"") -> 28799
A18: Cerebrolysin 5 ml | B18: 1 | C18: =IFERROR(VLOOKUP(A18,'Services-Produits'!$A$1:$B$2000,2,FALSE),"") -> 63.8 | D18: =IFERROR(B18*C18,"") -> 63.8
A19: Gedächtnis Infusion | B19: 1 | C19: =IFERROR(VLOOKUP(A19,'Services-Produits'!$A$1:$B$2000,2,FALSE),"") -> 378 | D19: 378
A20: Mitochondrien Infusion | B20: 2 | C20: =IFERROR(VLOOKUP(A20,'Services-Produits'!$A$1:$B$2000,2,FALSE),"") -> 428.7 | D20: 857.4
A21: Cerebrolysin 10 ml | B21: 1 | C21: =IFERROR(VLOOKUP(A21,'Services-Produits'!$A$1:$B$2000,2,FALSE),"") -> 99.6 | D21: 99.6
A22: Artesunat | B22: 6 | C22: =IFERROR(VLOOKUP(A22,'Services-Produits'!$A$1:$B$2000,2,FALSE),"") -> 67.2 | D22: 403.2
A23: Consultation | B23: 1 | C23: =IFERROR(VLOOKUP(A23,'Services-Produits'!$A$1:$B$2000,2,FALSE),"") -> 1800 | D23: 1800
C24: =IFERROR(VLOOKUP(A24,'Services-Produits'!$A$1:$B$2000,2,FALSE),"") -> 
C25: =IFERROR(VLOOKUP(A25,'Services-Produits'!$A$1:$B$2000,2,FALSE),"") -> 
C26: =IFERROR(VLOOKUP(A26,'Services-Produits'!$A$1:$B$2000,2,FALSE),"") -> 
C27: =IFERROR(VLOOKUP(A27,'Services-Produits'!$A$1:$B$2000,2,FALSE),"") -> 
C28: =IFERROR(VLOOKUP(A28,'Services-Produits'!$A$1:$B$2000,2,FALSE),"") -> 
C29: =IFERROR(VLOOKUP(A29,'Services-Produits'!$A$1:$B$2000,2,FALSE),"") -> 
C30: =IFERROR(VLOOKUP(A30,'Services-Produits'!$A$1:$B$2000,2,FALSE),"") -> 
C31: =IFERROR(VLOOKUP(A31,'Services-Produits'!$A$1:$B$2000,2,FALSE),"") -> 
C32: =IFERROR(VLOOKUP(A32,'Services-Produits'!$A$1:$B$2000,2,FALSE),"") -> 
C33: =IFERROR(VLOOKUP(A33,'Services-Produits'!$A$1:$B$2000,2,FALSE),"") -> 
C34: =IFERROR(VLOOKUP(A34,'Services-Produits'!$A$1:$B$2000,2,FALSE),"") -> 
C35: =IFERROR(VLOOKUP(A35,'Services-Produits'!$A$1:$B$2000,2,FALSE),"") -> 
C36: =IFERROR(VLOOKUP(A36,'Services-Produits'!$A$1:$B$2000,2,FALSE),"") -> 
C37: =IFERROR(VLOOKUP(A37,'Services-Produits'!$A$1:$B$2000,2,FALSE),"") -> 
A38: Total in CHF | D38: =SUM(D17:D37) -> 32401
A40: Thank you very much for your trust!

Sheet Prodjo Handajo Sunjoto
A3: Invoice: 55H-02406-GM11
A4: 23.09.2024
C5: Treatment by
C6: Dr. Roland Backhaus
A9: Mr. Prodjo Handajo Sunjoto
A10: Jakarta
A11: Indonesia
A14: Description | B14: Qty | C14: Price | D14: Amount
A15: Patient: Prodjo Handajo Sunjoto, M, 17.08.1941
A17: Gut Microbiome 2 transplants | B17: 1 | C17: =IFERROR(VLOOKUP(A17,'Services-Produits'!$A$1:$B$2000,2,FALSE),"") -> 14399.5 | D17: =IFERROR(B17*C17,"") -> 14399.5
A18: Discount 15% | D18: =D17*Discount15 -> -2159.925
A19: Cerebrolysin 10 ml | B19: 4 | C19: =IFERROR(VLOOKUP(A19,'Services-Produits'!$A$1:$B$2000,2,FALSE),"") -> 99.6 | D19: =IFERROR(B19*C19,"") -> 398.4
A20: Cerebrolysin 5 ml | B20: 1 | C20: =IFERROR(VLOOKUP(A20,'Services-Produits'!$A$1:$B$2000,2,FALSE),"") -> 63.8 | D20: =IFERROR(B20*C20,"") -> 63.8
A21: Gedächtnis Infusion | B21: 4 | C21: =IFERROR(VLOOKUP(A21,'Services-Produits'!$A$1:$B$2000,2,FALSE),"") -> 378 | D21: 1512
A22: Curcumin 150 mg | B22: 10 | C22: =IFERROR(VLOOKUP(A22,'Services-Produits'!$A$1:$B$2000,2,FALSE),"") -> 229.2 | D22: 2292
C23: =IFERROR(VLOOKUP(A23,'Services-Produits'!$A$1:$B$2000,2,FALSE),"") -> 
C24: =IFERROR(VLOOKUP(A24,'Services-Produits'!$A$1:$B$2000,2,FALSE),"") -> 
C25: =IFERROR(VLOOKUP(A25,'Services-Produits'!$A$1:$B$2000,2,FALSE),"") -> 
C26: =IFERROR(VLOOKUP(A26,'Services-Produits'!$A$1:$B$2000,2,FALSE),"") -> 
C27: =IFERROR(VLOOKUP(A27,'Services-Produits'!$A$1:$B$2000,2,FALSE),"") -> 
C28: =IFERROR(VLOOKUP(A28,'Services-Produits'!$A$1:$B$2000,2,FALSE),"") -> 
C29: =IFERROR(VLOOKUP(A29,'Services-Produits'!$A$1:$B$2000,2,FALSE),"") -> 
C30: =IFERROR(VLOOKUP(A30,'Services-Produits'!$A$1:$B$2000,2,FALSE),"") -> 
C31: =IFERROR(VLOOKUP(A31,'Services-Produits'!$A$1:$B$2000,2,FALSE),"") -> 
C32: =IFERROR(VLOOKUP(A32,'Services-Produits'!$A$1:$B$2000,2,FALSE),"") -> 
C33: =IFERROR(VLOOKUP(A33,'Services-Produits'!$A$1:$B$2000,2,FALSE),"") -> 
C34: =IFERROR(VLOOKUP(A34,'Services-Produits'!$A$1:$B$2000,2,FALSE),"") -> 
C35: =IFERROR(VLOOKUP(A35,'Services-Produits'!$A$1:$B$2000,2,FALSE),"") -> 
C36: =IFERROR(VLOOKUP(A36,'Services-Produits'!$A$1:$B$2000,2,FALSE),"") -> 
C37: =IFERROR(VLOOKUP(A37,'Services-Produits'!$A$1:$B$2000,2,FALSE),"") -> 
A38: Total in CHF | D38: =SUM(D17:D37) -> 16505.775
A40: Thank you very much for your trust!

Sheet Nonda Nellyana Djaja
A3: Invoice: 55H-02406-GM11
A4: 23.09.2024
C5: Treatment by
C6: Dr. Roland Backhaus
A9: Mrs. Nonda Nellyana Djaja
A10: Jakarta
A11: Indonesia
A14: Description | B14: Qty | C14: Price | D14: Amount
A15: Patient: Nonda Nellyana Djaja, F, 12.01.1948
A17: Gut Microbiome 2 transplants | B17: 1 | C17: =IFERROR(VLOOKUP(A17,'Services-Produits'!$A$1:$B$2000,2,FALSE),"") -> 14399.5 | D17: =IFERROR(B17*C17,"") -> 14399.5
A18: Discount 15% | D18: =D17*Discount15 -> -2159.925
A19: DCA | B19: 18 | C19: =IFERROR(VLOOKUP(A19,'Services-Produits'!$A$1:$B$2000,2,FALSE),"") -> 0 | D19: =IFERROR(B19*C19,"") -> 0
A20: Artesunat | B20: 15 | C20: =IFERROR(VLOOKUP(A20,'Services-Produits'!$A$1:$B$2000,2,FALSE),"") -> 67.2 | D20: 1008
A21: Antioxidant Mix | B21: 5 | C21: =IFERROR(VLOOKUP(A21,'Services-Produits'!$A$1:$B$2000,2,FALSE),"") -> 410 | D21: 2050
A22: Cerebrolysin 10 ml | C22: =IFERROR(VLOOKUP(A22,'Services-Produits'!$A$1:$B$2000,2,FALSE),"") -> 99.6 | D22: 0
C23: =IFERROR(VLOOKUP(A23,'Services-Produits'!$A$1:$B$2000,2,FALSE),"") -> 
C24: =IFERROR(VLOOKUP(A24,'Services-Produits'!$A$1:$B$2000,2,FALSE),"") -> 
C25: =IFERROR(VLOOKUP(A25,'Services-Produits'!$A$1:$B$2000,2,FALSE),"") -> 
C26: =IFERROR(VLOOKUP(A26,'Services-Produits'!$A$1:$B$2000,2,FALSE),"") -> 
C27: =IFERROR(VLOOKUP(A27,'Services-Produits'!$A$1:$B$2000,2,FALSE),"") -> 
C28: =IFERROR(VLOOKUP(A28,'Services-Produits'!$A$1:$B$2000,2,FALSE),"") -> 
C29: =IFERROR(VLOOKUP(A29,'Services-Produits'!$A$1:$B$2000,2,FALSE),"") -> 
C30: =IFERROR(VLOOKUP(A30,'Services-Produits'!$A$1:$B$2000,2,FALSE),"") -> 
C31: =IFERROR(VLOOKUP(A31,'Services-Produits'!$A$1:$B$2000,2,FALSE),"") -> 
C32: =IFERROR(VLOOKUP(A32,'Services-Produits'!$A$1:$B$2000,2,FALSE),"") -> 
C33: =IFERROR(VLOOKUP(A33,'Services-Produits'!$A$1:$B$2000,2,FALSE),"") -> 
C34: =IFERROR(VLOOKUP(A34,'Services-Produits'!$A$1:$B$2000,2,FALSE),"") -> 
C35: =IFERROR(VLOOKUP(A35,'Services-Produits'!$A$1:$B$2000,2,FALSE),"") -> 
C36: =IFERROR(VLOOKUP(A36,'Services-Produits'!$A$1:$B$2000,2,FALSE),"") -> 
C37: =IFERROR(VLOOKUP(A37,'Services-Produits'!$A$1:$B$2000,2,FALSE),"") -> 
A38: Total in CHF | D38: =SUM(D17:D37) -> 15297.575
A40: Thank you very much for your trust!

Sheet Reference2p
A3: Invoice: 55H-02406-GM11
A4: 04.07.2024
C5: Treatment by | E5: Description | F5: Qty | G5: Price | H5: Amount
C6: Dr. Roland Backhaus
G8: =IFERROR(VLOOKUP(E8,'Services-Produits'!$A$1:$B$2000,2,FALSE),"") ->  | H8: =IFERROR(F8*G8,"") -> 
G9: =IFERROR(VLOOKUP(E9,'Services-Produits'!$A$1:$B$2000,2,FALSE),"") ->  | H9: =IFERROR(F9*G9,"") -> 
G10: =IFERROR(VLOOKUP(E10,'Services-Produits'!$A$1:$B$2000,2,FALSE),"") -> 
G11: =IFERROR(VLOOKUP(E11,'Services-Produits'!$A$1:$B$2000,2,FALSE),"") -> 
G12: =IFERROR(VLOOKUP(E12,'Services-Produits'!$A$1:$B$2000,2,FALSE),"") -> 
G13: =IFERROR(VLOOKUP(E13,'Services-Produits'!$A$1:$B$2000,2,FALSE),"") -> 
A14: Description | B14: Qty | C14: Price | D14: Amount | G14: =IFERROR(VLOOKUP(E14,'Services-Produits'!$A$1:$B$2000,2,FALSE),"") -> 
G15: =IFERROR(VLOOKUP(E15,'Services-Produits'!$A$1:$B$2000,2,FALSE),"") -> 
G16: =IFERROR(VLOOKUP(E16,'Services-Produits'!$A$1:$B$2000,2,FALSE),"") -> 
C17: =IFERROR(VLOOKUP(A17,'Services-Produits'!$A$1:$B$2000,2,FALSE),"") ->  | D17: =IFERROR(B17*C17,"") ->  | G17: =IFERROR(VLOOKUP(E17,'Services-Produits'!$A$1:$B$2000,2,FALSE),"") -> 
C18: =IFERROR(VLOOKUP(A18,'Services-Produits'!$A$1:$B$2000,2,FALSE),"") ->  | D18: =IFERROR(B18*C18,"") ->  | G18: =IFERROR(VLOOKUP(E18,'Services-Produits'!$A$1:$B$2000,2,FALSE),"") -> 
C19: =IFERROR(VLOOKUP(A19,'Services-Produits'!$A$1:$B$2000,2,FALSE),"") ->  | G19: =IFERROR(VLOOKUP(E19,'Services-Produits'!$A$1:$B$2000,2,FALSE),"") -> 
C20: =IFERROR(VLOOKUP(A20,'Services-Produits'!$A$1:$B$2000,2,FALSE),"") ->  | G20: =IFERROR(VLOOKUP(E20,'Services-Produits'!$A$1:$B$2000,2,FALSE),"") ->  | H20: =IFERROR(F20*G20,"") -> 
C21: =IFERROR(VLOOKUP(A21,'Services-Produits'!$A$1:$B$2000,2,FALSE),"") ->  | G21: =IFERROR(VLOOKUP(E21,'Services-Produits'!$A$1:$B$2000,2,FALSE),"") -> 
C22: =IFERROR(VLOOKUP(A22,'Services-Produits'!$A$1:$B$2000,2,FALSE),"") ->  | G22: =IFERROR(VLOOKUP(E22,'Services-Produits'!$A$1:$B$2000,2,FALSE),"") -> 
C23: =IFERROR(VLOOKUP(A23,'Services-Produits'!$A$1:$B$2000,2,FALSE),"") ->  | G23: =IFERROR(VLOOKUP(E23,'Services-Produits'!$A$1:$B$2000,2,FALSE),"") -> 
C24: =IFERROR(VLOOKUP(A24,'Services-Produits'!$A$1:$B$2000,2,FALSE),"") ->  | G24: =IFERROR(VLOOKUP(E24,'Services-Produits'!$A$1:$B$2000,2,FALSE),"") -> 
C25: =IFERROR(VLOOKUP(A25,'Services-Produits'!$A$1:$B$2000,2,FALSE),"") ->  | G25: =IFERROR(VLOOKUP(E25,'Services-Produits'!$A$1:$B$2000,2,FALSE),"") -> 
C26: =IFERROR(VLOOKUP(A26,'Services-Produits'!$A$1:$B$2000,2,FALSE),"") ->  | G26: =IFERROR(VLOOKUP(E26,'Services-Produits'!$A$1:$B$2000,2,FALSE),"") -> 
C27: =IFERROR(VLOOKUP(A27,'Services-Produits'!$A$1:$B$2000,2,FALSE),"") ->  | E27: Subtotal-2 in CHF: | H27: =SUM(H8:H26) -> 0
C28: =IFERROR(VLOOKUP(A28,'Services-Produits'!$A$1:$B$2000,2,FALSE),"") ->  | G28: =IFERROR(VLOOKUP(E28,'Services-Produits'!$A$1:$B$149,2,FALSE),"") -> 
C29: =IFERROR(VLOOKUP(A29,'Services-Produits'!$A$1:$B$2000,2,FALSE),"") ->  | E29: Total in CHF | H29: =D41+H27 -> 0
C30: =IFERROR(VLOOKUP(A30,'Services-Produits'!$A$1:$B$2000,2,FALSE),"") -> 
C31: =IFERROR(VLOOKUP(A31,'Services-Produits'!$A$1:$B$2000,2,FALSE),"") ->  | E31: Thank you very much for your trust!
C32: =IFERROR(VLOOKUP(A32,'Services-Produits'!$A$1:$B$2000,2,FALSE),"") -> 
C33: =IFERROR(VLOOKUP(A33,'Services-Produits'!$A$1:$B$2000,2,FALSE),"") -> 
C34: =IFERROR(VLOOKUP(A34,'Services-Produits'!$A$1:$B$2000,2,FALSE),"") -> 
C35: =IFERROR(VLOOKUP(A35,'Services-Produits'!$A$1:$B$2000,2,FALSE),"") -> 
C36: =IFERROR(VLOOKUP(A36,'Services-Produits'!$A$1:$B$2000,2,FALSE),"") -> 
C37: =IFERROR(VLOOKUP(A37,'Services-Produits'!$A$1:$B$2000,2,FALSE),"") -> 
C38: =IFERROR(VLOOKUP(A38,'Services-Produits'!$A$1:$B$2000,2,FALSE),"") -> 
C39: =IFERROR(VLOOKUP(A39,'Services-Produits'!$A$1:$B$2000,2,FALSE),"") -> 
C40: =IFERROR(VLOOKUP(A40,'Services-Produits'!$A$1:$B$2000,2,FALSE),"") -> 
A41: Subtotal-1 in CHF: | D41: =SUM(D17:D39) -> 0
